fUSD/lending_fUSD_20260506
["ID","MTS","AMOUNT","RATE_DAILY","PERIOD"]
[421730315,1778074240000,-6183.0,0.00026393,2]
[421730311,1778074240000,-890.2,0.00026296,2]
[421730312,1778074240000,-315.96198961,0.00026307,2]
[421730313,1778074240000,-2451.0,0.0002632,2]
[421730314,1778074240000,-1001.56593355,0.00026321,2]
[421730316,1778074240000,-163.03,0.00026484,7]
[421730317,1778074240000,-157.22,0.00026484,7]
[421730322,1778074240000,-286.0,0.00027019,2]
[421730323,1778074240000,-150.0,0.00027019,2]
[421730319,1778074240000,-2004.32156241,0.00026489,2]
[421730324,1778074240000,-245.0,0.00027019,2]
[421730321,1778074240000,-2000.0,0.00026489,2]
[421730328,1778074240000,-339.1872416,0.00027373,2]
[421730327,1778074240000,-2500.0,0.00027037,2]
[421730332,1778074240000,-500.0,0.00027373,2]
[421730329,1778074240000,-500.0,0.00027373,2]
[421730330,1778074240000,-500.0,0.00027373,2]
[421730331,1778074240000,-529.61366875,0.00027373,2]
[421730334,1778074240000,-150.0,0.00027397,30]
[421730333,1778074240000,-155.54,0.00027397,2]
[421730335,1778074240000,-1500.0,0.00027397,2]
[421730285,1778074240000,-1000.0,0.00025393,2]
[421730326,1778074240000,-2500.0,0.00027037,2]
[421730320,1778074240000,-2000.0,0.00026489,2]
[421730325,1778074240000,-1634.77125774,0.00027037,2]
[421730318,1778074240000,-2000.0,0.00026489,2]
[421730308,1778074240000,-1500.0,0.00025941,2]
[421730288,1778074240000,-818.00937475,0.00025393,2]
[421730289,1778074240000,-565.62994908,0.00025393,2]
[421730284,1778074240000,-1000.0,0.00025393,2]
[421730282,1778074240000,-1000.0,0.00025393,2]
[421730280,1778074240000,-1117.53083552,0.00025393,2]
[421730283,1778074240000,-1000.0,0.00025393,2]
[421730281,1778074240000,-1001.44323485,0.00025393,2]
[421730294,1778074240000,-500.0,0.00025785,2]
[421730292,1778074240000,-750.0,0.00025759,2]
[421730291,1778074240000,-2651.0,0.0002541,2]
[421730293,1778074240000,-500.0,0.00025773,2]
[421730297,1778074240000,-1205.88,0.00025786,2]
[421730287,1778074240000,-1000.0,0.00025393,2]
[421730296,1778074240000,-6130.07,0.00025786,2]
[421730305,1778074240000,-1500.0,0.00025941,2]
[421730306,1778074240000,-167.88328684,0.00025941,2]
[421730302,1778074240000,-28281.6995466,0.00025786,2]
[421730303,1778074240000,-15868.24387489,0.00025879,2]
[421730304,1778074240000,-1500.0,0.00025941,2]
[421730309,1778074240000,-501.54617284,0.00025941,2]
[421730301,1778074240000,-533.83475118,0.00024558,2]
[421730298,1778074240000,-429.74113175,0.00025786,2]
[421730295,1778074240000,-658.04,0.00025786,2]
[421730299,1778074240000,-380.52932165,0.00025786,2]
[421730300,1778074240000,-410.295,0.00024558,2]
[421730377,1778074241000,-150.0,0.00029534,2]
[421730386,1778074241000,-2000.0,0.00029937,7]
[421730387,1778074241000,-4507.0,0.00029948,10]
[421730376,1778074241000,-1664.97863847,0.00029452,30]
[421730374,1778074241000,-2000.0,0.00029337,7]
[421730373,1778074241000,-2000.0,0.00029237,7]
[421730367,1778074241000,-450.37920875,0.00028818,2]
[421730370,1778074241000,-175.80035316,0.00029191,5]
[421730375,1778074241000,-2000.0,0.00029437,7]
[421730369,1778074241000,-812.26164592,0.00029137,7]
[421730381,1778074241000,-15868.24387483,0.00029543,2]
[421730372,1778074241000,-209.63,0.00029232,7]
[421730379,1778074241000,-267.1856,0.00029537,30]
[421730394,1778074241000,-24468.86,0.0003,7]
[421730388,1778074241000,-500.0,0.00029973,5]
[421730378,1778074241000,-2000.0,0.00029537,7]
[421730380,1778074241000,-3452.0,0.00029541,2]
[421730384,1778074241000,-2000.0,0.00029737,7]
[421730383,1778074241000,-519.220539,0.00029668,14]
[421730382,1778074241000,-2000.0,0.00029637,7]
[421730398,1778074241000,-200.0,0.0003,2]
[421730389,1778074241000,-172.24949336,0.00029999,2]
[421730400,1778074241000,-10000.0,0.0003,30]
[421730399,1778074241000,-200.0,0.0003,2]
[421730401,1778074241000,-6512.0,0.00030003,2]
[421730390,1778074241000,-475.89665388,0.00029999,2]
[421730371,1778074241000,-217.37,0.00029232,7]
[421730385,1778074241000,-2000.0,0.00029837,7]
[421730365,1778074241000,-341.060312,0.00028767,60]
[421730336,1778074241000,-300.0,0.00027397,2]
[421730364,1778074241000,-200.0,0.00028767,60]
[421730338,1778074241000,-1000.0,0.00027397,45]
[421730337,1778074241000,-10563.38,0.00027397,10]
[421730391,1778074241000,-645.98517831,0.00029999,2]
[421730339,1778074241000,-24468.86,0.000274,7]
[421730340,1778074241000,-2008.23716968,0.00027585,5]
[421730347,1778074241000,-237.27,0.00027853,14]
[421730348,1778074241000,-2829.34381942,0.00027959,2]
[421730346,1778074241000,-237.28,0.00027853,2]
[421730341,1778074241000,-3000.0,0.00027585,5]
[421730342,1778074241000,-3421.0,0.00027654,2]
[421730343,1778074241000,-15868.24387483,0.00027711,2]
[421730344,1778074241000,-264.66232,0.00027788,14]
[421730349,1778074241000,-180.53,0.00028,2]
[421730345,1778074241000,-600.324983,0.00027788,14]
[421730351,1778074241000,-890.2,0.00028267,2]
[421730352,1778074241000,-163.03,0.0002831,30]
[421730362,1778074241000,-200.0,0.00028767,60]
[421730361,1778074241000,-200.0,0.00028767,60]
[421730350,1778074241000,-3385.17092439,0.00028133,5]
[421730353,1778074241000,-157.22,0.0002831,30]
[421730360,1778074241000,-200.0,0.00028767,60]
[421730354,1778074241000,-2000.0,0.00028361,2]
[421730355,1778074241000,-217.37,0.00028407,2]
[421730356,1778074241000,-209.63,0.00028424,2]
[421730358,1778074241000,-2541.0,0.00028751,2]
[421730357,1778074241000,-150.0,0.00028643,5]
[421730359,1778074241000,-467.95,0.00028767,55]
[421730363,1778074241000,-200.0,0.00028767,60]
[421730392,1778074241000,-500.0,0.00029999,2]
[421730393,1778074241000,-374.04978173,0.00029999,2]
[421730396,1778074241000,-200.0,0.0003,2]
[421730429,1778074241000,-800.0,0.00031025,2]
[421730433,1778074241000,-900.0,0.00031237,2]
[421730431,1778074241000,-200.0,0.00031037,2]
[421730436,1778074241000,-900.0,0.00031237,2]
[421730437,1778074241000,-900.0,0.00031237,2]
[421730434,1778074241000,-900.0,0.00031237,2]
[421730438,1778074241000,-900.0,0.00031237,2]
[421730435,1778074241000,-900.0,0.00031237,2]
[421730439,1778074241000,-900.0,0.00031237,2]
[421730442,1778074241000,-673.0,0.00031237,2]
[421730443,1778074241000,-153.0,0.00031248,30]
[421730450,1778074241000,-162.0,0.00031252,30]
[421730452,1778074241000,-384.32,0.00031337,2]
[421730440,1778074241000,-900.0,0.00031237,2]
[421730441,1778074241000,-900.0,0.00031237,2]
[421730448,1778074241000,-158.0,0.00031252,30]
[421730446,1778074241000,-159.0,0.00031248,30]
[421730444,1778074241000,-152.0,0.00031248,30]
[421730445,1778074241000,-158.0,0.00031248,30]
[421730447,1778074241000,-163.0,0.00031248,30]
[421730451,1778074241000,-158.0,0.00031261,30]
[421730453,1778074241000,-15868.24387483,0.00031374,2]
[421730457,1778074241000,-2000.0,0.00031512,2]
[421730455,1778074241000,-475.44,0.00031497,2]
[421730456,1778074241000,-24468.86,0.000315,7]
[421730454,1778074241000,-2312.0,0.00031456,2]
[421730459,1778074241000,-750.0,0.00031601,2]
[421730397,1778074241000,-200.0,0.0003,2]
[421730449,1778074241000,-153.0,0.00031252,30]
[421730430,1778074241000,-628.0,0.00031025,2]
[421730458,1778074241000,-750.0,0.00031601,2]
[421730425,1778074241000,-800.0,0.00031025,2]
[421730432,1778074241000,-475.44,0.00031224,2]
[421730403,1778074241000,-159.6,0.00030136,2]
[421730413,1778074241000,-890.2,0.00030239,2]
[421730405,1778074241000,-157.23,0.00030136,2]
[421730415,1778074241000,-1101.29,0.00030437,120]
[421730402,1778074241000,-2000.0,0.00030037,7]
[421730414,1778074241000,-200.0,0.00030437,2]
[421730408,1778074241000,-200.0,0.00030137,2]
[421730409,1778074241000,-1008.2,0.00030137,2]
[421730410,1778074241000,-3958.0,0.00030137,120]
[421730407,1778074241000,-203.94470767,0.00030137,40]
[421730404,1778074241000,-163.04,0.00030136,2]
[421730411,1778074241000,-1664.97863847,0.00030137,30]
[421730395,1778074241000,-200.0,0.0003,2]
[421730406,1778074241000,-160.67,0.00030137,2]
[421730412,1778074241000,-401.06,0.000302,2]
[421730426,1778074241000,-800.0,0.00031025,2]
[421730424,1778074241000,-800.0,0.00031025,2]
[421730422,1778074241000,-800.0,0.00031025,2]
[421730420,1778074241000,-150.0,0.00031011,2]
[421730419,1778074241000,-475.44,0.0003095,2]
[421730418,1778074241000,-2829.34381942,0.00030841,2]
[421730421,1778074241000,-800.0,0.00031025,2]
[421730416,1778074241000,-475.44,0.00030676,2]
[421730428,1778074241000,-800.0,0.00031025,2]
[421730427,1778074241000,-800.0,0.00031025,2]
[421730417,1778074241000,-200.0,0.00030737,2]
[421730423,1778074241000,-800.0,0.00031025,2]
[421730498,1778074242000,-1015.29,0.00031987,30]
[421730499,1778074242000,-1015.29,0.00031996,30]
[421730497,1778074242000,-263.0870374,0.00031981,2]
[421730495,1778074242000,-7512.865872,0.00031981,2]
[421730503,1778074242000,-1015.29,0.00032022,30]
[421730504,1778074242000,-1015.29,0.0003203,30]
[421730494,1778074242000,-171.3777981,0.00031981,2]
[421730496,1778074242000,-7963.4867816,0.00031981,2]
[421730492,1778074242000,-493.7601611,0.00031981,2]
[421730500,1778074242000,-178.85754528,0.00032,120]
[421730490,1778074242000,-1015.29,0.0003197,30]
[421730493,1778074242000,-1563.3717321,0.00031981,2]
[421730502,1778074242000,-1015.29,0.00032013,30]
[421730510,1778074242000,-1015.29,0.00032074,30]
[421730505,1778074242000,-1015.29,0.00032039,30]
[421730507,1778074242000,-1015.29,0.00032057,30]
[421730509,1778074242000,-1015.29,0.00032065,30]
[421730506,1778074242000,-1015.29,0.00032048,30]
[421730513,1778074242000,-150.0,0.00032083,30]
[421730516,1778074242000,-1015.29,0.00032091,30]
[421730508,1778074242000,-228.695231,0.00032064,14]
[421730511,1778074242000,-1015.29,0.00032083,30]
[421730512,1778074242000,-150.0,0.00032083,30]
[421730514,1778074242000,-150.0,0.00032083,30]
[421730515,1778074242000,-174.0,0.00032083,30]
[421730482,1778074242000,-500.0,0.00031908,2]
[421730528,1778074242000,-400.0,0.00032178,30]
[421730501,1778074242000,-1015.29,0.00032004,30]
[421730488,1778074242000,-1015.29,0.00031952,30]
[421730475,1778074242000,-250.0,0.0003169,2]
[421730487,1778074242000,-1015.29,0.00031943,30]
[421730529,1778074242000,-400.0,0.00032178,30]
[421730460,1778074242000,-750.0,0.00031601,2]
[421730461,1778074242000,-750.0,0.00031601,2]
[421730462,1778074242000,-750.0,0.00031601,2]
[421730463,1778074242000,-750.0,0.00031601,2]
[421730464,1778074242000,-750.0,0.00031601,2]
[421730466,1778074242000,-750.0,0.00031601,2]
[421730465,1778074242000,-750.0,0.00031601,2]
[421730476,1778074242000,-250.0,0.0003169,2]
[421730477,1778074242000,-246.0,0.0003169,2]
[421730467,1778074242000,-291.0,0.00031601,2]
[421730468,1778074242000,-250.0,0.0003169,2]
[421730473,1778074242000,-250.0,0.0003169,2]
[421730470,1778074242000,-250.0,0.0003169,2]
[421730474,1778074242000,-250.0,0.0003169,2]
[421730471,1778074242000,-250.0,0.0003169,2]
[421730469,1778074242000,-250.0,0.0003169,2]
[421730472,1778074242000,-250.0,0.0003169,2]
[421730483,1778074242000,-1015.29,0.00031909,30]
[421730485,1778074242000,-1015.29,0.00031926,30]
[421730484,1778074242000,-1015.29,0.00031917,30]
[421730486,1778074242000,-1015.29,0.00031935,30]
[421730481,1778074242000,-1015.29,0.000319,30]
[421730489,1778074242000,-1015.29,0.00031961,30]
[421730478,1778074242000,-475.47,0.00031771,2]
[421730479,1778074242000,-555.2211204,0.00031887,2]
[421730491,1778074242000,-1015.29,0.00031978,30]
[421730480,1778074242000,-4507.0,0.00031895,10]
[421730518,1778074242000,-1015.29,0.00032109,30]
[421730577,1778074242000,-500.0,0.00033975,5]
[421730523,1778074242000,-1015.29,0.00032152,30]
[421730552,1778074242000,-1015.29,0.000323,30]
[421730559,1778074242000,-15868.24387483,0.00033206,2]
[421730554,1778074242000,-726.0,0.00032307,2]
[421730558,1778074242000,-178.85754528,0.00033,120]
[421730556,1778074242000,-3451.0,0.00032569,2]
[421730555,1778074242000,-150.0,0.00032562,2]
[421730557,1778074242000,-175.33,0.00032976,2]
[421730560,1778074242000,-153.0,0.00033248,30]
[421730561,1778074242000,-158.0,0.00033248,30]
[421730562,1778074242000,-159.0,0.00033248,30]
[421730565,1778074242000,-168.81989359,0.000333,7]
[421730574,1778074242000,-519.0,0.0003382,2]
[421730564,1778074242000,-162.0,0.00033261,30]
[421730566,1778074242000,-450.37920875,0.00033344,2]
[421730567,1778074242000,-348.8353849,0.00033476,2]
[421730569,1778074242000,-24468.86,0.000336,7]
[421730571,1778074242000,-2588.0,0.00033654,2]
[421730568,1778074242000,-167.0,0.00033539,120]
[421730572,1778074242000,-2829.34381942,0.00033722,2]
[421730573,1778074242000,-1101.29,0.00033819,120]
[421730570,1778074242000,-500.0,0.00033616,26]
[421730579,1778074242000,-150.0,0.0003419,2]
[421730576,1778074242000,-178.85754528,0.000339,120]
[421730581,1778074242000,-153.0,0.00034248,30]
[421730519,1778074242000,-1015.29,0.00032117,30]
[421730580,1778074242000,-155.53,0.00034247,30]
[421730578,1778074242000,-890.2,0.00034182,7]
[421730563,1778074242000,-163.0,0.00033248,30]
[421730553,1778074242000,-831.0297243,0.00032307,2]
[421730575,1778074242000,-4507.0,0.00033842,15]
[421730546,1778074242000,-1015.29,0.00032257,30]
[421730548,1778074242000,-1015.29,0.00032265,30]
[421730524,1778074242000,-1015.29,0.00032161,30]
[421730521,1778074242000,-1015.29,0.00032135,30]
[421730522,1778074242000,-1015.29,0.00032143,30]
[421730517,1778074242000,-1015.29,0.000321,30]
[421730527,1778074242000,-400.0,0.00032178,30]
[421730526,1778074242000,-1015.29,0.00032178,30]
[421730525,1778074242000,-1015.29,0.0003217,30]
[421730531,1778074242000,-400.0,0.00032178,30]
[421730532,1778074242000,-193.0,0.00032178,30]
[421730530,1778074242000,-400.0,0.00032178,30]
[421730534,1778074242000,-1015.29,0.00032196,30]
[421730535,1778074242000,-1015.29,0.00032204,30]
[421730536,1778074242000,-890.2,0.0003221,5]
[421730520,1778074242000,-1015.29,0.00032126,30]
[421730539,1778074242000,-1015.29,0.0003223,30]
[421730540,1778074242000,-1015.29,0.00032239,30]
[421730543,1778074242000,-159.0,0.00032248,30]
[421730544,1778074242000,-163.0,0.00032248,30]
[421730551,1778074242000,-1015.29,0.00032291,30]
[421730542,1778074242000,-158.0,0.00032248,30]
[421730547,1778074242000,-158.0,0.00032261,30]
[421730541,1778074242000,-153.0,0.00032248,30]
[421730537,1778074242000,-1015.29,0.00032213,30]
[421730545,1778074242000,-1015.29,0.00032248,30]
[421730549,1778074242000,-1015.29,0.00032274,30]
[421730538,1778074242000,-1015.29,0.00032222,30]
[421730550,1778074242000,-1015.29,0.00032283,30]
[421730533,1778074242000,-1015.29,0.00032187,30]
[421730621,1778074243000,-159.0,0.00035248,30]
[421730626,1778074243000,-4507.0,0.0003579,15]
[421730620,1778074243000,-165.0,0.00035248,30]
[421730622,1778074243000,-163.0,0.00035248,30]
[421730624,1778074243000,-6325.0,0.00035444,2]
[421730623,1778074243000,-24468.86,0.000353,7]
[421730630,1778074243000,-153.0,0.00036248,30]
[421730627,1778074243000,-178.85754528,0.00036,120]
[421730625,1778074243000,-160.67,0.00035616,2]
[421730629,1778074243000,-890.2,0.00036153,30]
[421730618,1778074243000,-153.0,0.00035248,30]
[421730634,1778074243000,-400.0,0.0003663,5]
[421730642,1778074243000,-1268.0,0.00037257,2]
[421730631,1778074243000,-159.0,0.00036248,30]
[421730632,1778074243000,-163.0,0.00036248,30]
[421730635,1778074243000,-674.0,0.0003663,5]
[421730633,1778074243000,-2829.34381942,0.00036603,2]
[421730644,1778074243000,-624.0,0.00037257,2]
[421730638,1778074243000,-1101.29,0.00037201,120]
[421730641,1778074243000,-163.0,0.00037248,30]
[421730636,1778074243000,-15868.24387483,0.0003687,2]
[421730637,1778074243000,-165.13,0.00037073,2]
[421730640,1778074243000,-172.0,0.00037248,30]
[421730607,1778074243000,-500.0,0.00034625,28]
[421730628,1778074243000,-3210.0,0.00036123,2]
[421730606,1778074243000,-157.0,0.00034621,2]
[421730596,1778074243000,-160.0,0.00034555,2]
[421730608,1778074243000,-2000.0,0.00034663,2]
[421730583,1778074243000,-159.0,0.00034248,30]
[421730584,1778074243000,-163.0,0.00034248,30]
[421730582,1778074243000,-158.0,0.00034248,30]
[421730585,1778074243000,-4444.0,0.00034444,2]
[421730587,1778074243000,-743.57107582,0.00034523,5]
[421730591,1778074243000,-200.0,0.00034555,2]
[421730592,1778074243000,-200.0,0.00034555,2]
[421730594,1778074243000,-200.0,0.00034555,2]
[421730595,1778074243000,-200.0,0.00034555,2]
[421730593,1778074243000,-200.0,0.00034555,2]
[421730590,1778074243000,-200.0,0.00034555,2]
[421730588,1778074243000,-200.0,0.00034555,2]
[421730597,1778074243000,-200.0,0.00034621,2]
[421730589,1778074243000,-200.0,0.00034555,2]
[421730599,1778074243000,-200.0,0.00034621,2]
[421730598,1778074243000,-200.0,0.00034621,2]
[421730600,1778074243000,-200.0,0.00034621,2]
[421730610,1778074243000,-492.819494,0.00034908,21]
[421730612,1778074243000,-178.85754528,0.00035,120]
[421730614,1778074243000,-15868.24387483,0.00035038,2]
[421730601,1778074243000,-200.0,0.00034621,2]
[421730602,1778074243000,-200.0,0.00034621,2]
[421730604,1778074243000,-200.0,0.00034621,2]
[421730603,1778074243000,-200.0,0.00034621,2]
[421730616,1778074243000,-254.29,0.00035221,2]
[421730605,1778074243000,-200.0,0.00034621,2]
[421730643,1778074243000,-1221.0,0.00037257,2]
[421730639,1778074243000,-153.0,0.00037248,30]
[421730647,1778074243000,-200.0,0.000373,30]
[421730671,1778074243000,-151.0,0.00037462,2]
[421730675,1778074243000,-4511.0,0.00037737,15]
[421730676,1778074243000,-150.0,0.000378,7]
[421730677,1778074243000,-2000.0,0.00037814,2]
[421730680,1778074243000,-150.0,0.00037898,2]
[421730678,1778074243000,-450.37920875,0.0003787,2]
[421730679,1778074243000,-150.0,0.00037898,2]
[421730683,1778074243000,-150.0,0.00037898,2]
[421730685,1778074243000,-150.0,0.00037898,2]
[421730686,1778074243000,-288.0,0.00037898,2]
[421730687,1778074243000,-5172.74839054,0.00038,2]
[421730694,1778074243000,-310.3725982,0.0003827,2]
[421730695,1778074243000,-463.08064867,0.0003827,2]
[421730692,1778074243000,-309.07064608,0.0003827,2]
[421730684,1778074243000,-150.0,0.00037898,2]
[421730690,1778074243000,-890.2,0.00038125,30]
[421730691,1778074243000,-1145.24599896,0.0003827,2]
[421730693,1778074243000,-862.96230178,0.0003827,2]
[421730689,1778074243000,-712.0,0.00038032,30]
[421730697,1778074243000,-451.13853711,0.0003827,2]
[421730696,1778074243000,-481.18706949,0.0003827,2]
[421730700,1778074243000,-309.32134718,0.0003827,2]
[421730698,1778074243000,-300.00000001,0.0003827,2]
[421730699,1778074243000,-483.27319916,0.0003827,2]
[421730645,1778074243000,-925.0,0.00037257,2]
[421730672,1778074243000,-5412.0,0.00037489,2]
[421730673,1778074243000,-568.0,0.00037702,30]
[421730688,1778074243000,-284.0,0.00038032,30]
[421730681,1778074243000,-150.0,0.00037898,2]
[421730674,1778074243000,-500.0,0.00037736,2]
[421730646,1778074243000,-24468.86,0.000373,7]
[421730648,1778074243000,-1059.59351199,0.00037361,30]
[421730651,1778074243000,-150.0,0.00037403,2]
[421730650,1778074243000,-150.0,0.00037403,2]
[421730649,1778074243000,-1059.59351199,0.00037361,30]
[421730653,1778074243000,-193.94104199,0.00037403,2]
[421730652,1778074243000,-150.0,0.00037403,2]
[421730655,1778074243000,-500.0,0.00037403,2]
[421730654,1778074243000,-500.0,0.00037403,2]
[421730657,1778074243000,-500.0,0.00037403,2]
[421730659,1778074243000,-500.0,0.00037403,2]
[421730661,1778074243000,-250.0,0.00037403,2]
[421730656,1778074243000,-500.0,0.00037403,2]
[421730682,1778074243000,-150.0,0.00037898,2]
[421730660,1778074243000,-509.972563,0.00037403,2]
[421730670,1778074243000,-150.098,0.00037462,2]
[421730669,1778074243000,-150.0,0.00037462,2]
[421730664,1778074243000,-260.05273032,0.00037403,2]
[421730663,1778074243000,-250.0,0.00037403,2]
[421730667,1778074243000,-250.0,0.00037462,2]
[421730668,1778074243000,-194.343,0.00037462,2]
[421730665,1778074243000,-264.11618492,0.00037414,96]
[421730666,1778074243000,-204.71,0.00037462,2]
[421730658,1778074243000,-500.0,0.00037403,2]
[421730662,1778074243000,-250.0,0.00037403,2]
[421730739,1778074244000,-891.9241332,0.0003827,2]
[421730743,1778074244000,-301.2859328,0.0003827,2]
[421730744,1778074244000,-300.0,0.0003827,2]
[421730748,1778074244000,-1793.38851355,0.0003827,2]
[421730747,1778074244000,-852.7601399,0.0003827,2]
[421730732,1778074244000,-491.85958444,0.0003827,2]
[421730741,1778074244000,-724.83131769,0.0003827,2]
[421730740,1778074244000,-309.13065885,0.0003827,2]
[421730737,1778074244000,-526.86051061,0.0003827,2]
[421730733,1778074244000,-495.86197898,0.0003827,2]
[421730738,1778074244000,-1065.13491717,0.0003827,2]
[421730746,1778074244000,-300.0,0.0003827,2]
[421730742,1778074244000,-300.0,0.0003827,2]
[421730761,1778074244000,-300.0,0.0003827,2]
[421730751,1778074244000,-526.00966879,0.0003827,2]
[421730754,1778074244000,-862.96230178,0.0003827,2]
[421730750,1778074244000,-343.40295571,0.0003827,2]
[421730749,1778074244000,-300.0,0.0003827,2]
[421730756,1778074244000,-463.08064867,0.0003827,2]
[421730758,1778074244000,-451.13853711,0.0003827,2]
[421730759,1778074244000,-300.0,0.0003827,2]
[421730753,1778074244000,-309.07064608,0.0003827,2]
[421730755,1778074244000,-310.3725982,0.0003827,2]
[421730757,1778074244000,-481.18706949,0.0003827,2]
[421730752,1778074244000,-1145.24599896,0.0003827,2]
[421730734,1778074244000,-378.75079938,0.0003827,2]
[421730745,1778074244000,-300.06118393,0.0003827,2]
[421730730,1778074244000,-300.0,0.0003827,2]
[421730707,1778074244000,-1065.13491717,0.0003827,2]
[421730735,1778074244000,-603.45144378,0.0003827,2]
[421730771,1778074244000,-526.86051061,0.0003827,2]
[421730709,1778074244000,-891.9241332,0.0003827,2]
[421730704,1778074244000,-603.45144378,0.0003827,2]
[421730701,1778074244000,-300.0,0.0003827,2]
[421730705,1778074244000,-300.0,0.0003827,2]
[421730702,1778074244000,-1092.83356842,0.0003827,2]
[421730706,1778074244000,-526.86051061,0.0003827,2]
[421730703,1778074244000,-491.85958444,0.0003827,2]
[421730711,1778074244000,-309.13065885,0.0003827,2]
[421730715,1778074244000,-300.06118393,0.0003827,2]
[421730713,1778074244000,-301.2859328,0.0003827,2]
[421730716,1778074244000,-852.7601399,0.0003827,2]
[421730728,1778074244000,-483.27319916,0.0003827,2]
[421730712,1778074244000,-724.83131769,0.0003827,2]
[421730718,1778074244000,-343.40295571,0.0003827,2]
[421730722,1778074244000,-310.3725982,0.0003827,2]
[421730723,1778074244000,-463.08064867,0.0003827,2]
[421730717,1778074244000,-1793.38851355,0.0003827,2]
[421730719,1778074244000,-1145.24599896,0.0003827,2]
[421730720,1778074244000,-309.07064608,0.0003827,2]
[421730721,1778074244000,-862.96230178,0.0003827,2]
[421730736,1778074244000,-300.0,0.0003827,2]
[421730725,1778074244000,-451.13853711,0.0003827,2]
[421730727,1778074244000,-300.0,0.0003827,2]
[421730729,1778074244000,-309.32134718,0.0003827,2]
[421730731,1778074244000,-1092.83356842,0.0003827,2]
[421730724,1778074244000,-481.18706949,0.0003827,2]
[421730760,1778074244000,-300.0,0.0003827,2]
[421730714,1778074244000,-300.0,0.0003827,2]
[421730772,1778074244000,-1065.13491717,0.0003827,2]
[421730795,1778074244000,-300.0,0.0003827,2]
[421730797,1778074244000,-309.32134718,0.0003827,2]
[421730812,1778074244000,-162.59148893,0.00038273,5]
[421730798,1778074244000,-300.0,0.0003827,2]
[421730799,1778074244000,-1092.83356842,0.0003827,2]
[421730810,1778074244000,-603.45144378,0.0003827,2]
[421730805,1778074244000,-491.85958444,0.0003827,2]
[421730801,1778074244000,-300.0,0.0003827,2]
[421730803,1778074244000,-300.0,0.0003827,2]
[421730819,1778074244000,-258.07795954,0.00038273,5]
[421730817,1778074244000,-500.0,0.00038273,5]
[421730807,1778074244000,-300.0,0.0003827,2]
[421730814,1778074244000,-500.0,0.00038273,5]
[421730828,1778074244000,-1188.504,0.00038452,51]
[421730825,1778074244000,-168.0,0.00038356,2]
[421730823,1778074244000,-244.3771,0.00038351,2]
[421730849,1778074244000,-229.9,0.00039,30]
[421730821,1778074244000,-244.4857,0.00038351,2]
[421730834,1778074244000,-229.9,0.000385,30]
[421730832,1778074244000,-253.53,0.000385,30]
[421730830,1778074244000,-6541.0,0.00038475,2]
[421730838,1778074244000,-15868.24387483,0.00038701,2]
[421730836,1778074244000,-200.0,0.00038685,20]
[421730840,1778074244000,-286.24644495,0.0003872,30]
[421730842,1778074244000,-24468.86,0.000388,7]
[421730846,1778074244000,-59745.80072533,0.00039,120]
[421730762,1778074244000,-483.27319916,0.0003827,2]
[421730792,1778074244000,-451.13853711,0.0003827,2]
[421730793,1778074244000,-300.0,0.0003827,2]
[421730844,1778074244000,-184.0,0.00038919,10]
[421730794,1778074244000,-300.0,0.0003827,2]
[421730791,1778074244000,-481.18706949,0.0003827,2]